bitfinex/quotes_BTCUSD_20250518
["timestamp","ask_amount","ask_price","bid_price","bid_amount"]
[1747584973529,0.10141881,105460.0,105450.0,0.39795596]
[1747584973743,0.10141881,105460.0,105450.0,0.60511596]
[1747584973955,0.11202354,105460.0,105450.0,0.60511596]
[1747584974380,0.11102354,105460.0,105450.0,0.60511596]
[1747584974805,0.11402354,105460.0,105450.0,0.60511596]
[1747584975236,0.11205619,105460.0,105450.0,0.60511596]
[1747584975684,0.00514206,105460.0,105450.0,0.8995289]
[1747584976398,0.00314206,105460.0,105450.0,0.8995289]
[1747584976614,0.00314206,105460.0,105450.0,0.9015289]
[1747584976852,0.00314206,105460.0,105450.0,1.2415289]
[1747584977090,0.00214206,105460.0,105450.0,1.2425289]
[1747584977318,0.00957243,105490.0,105480.0,0.0639]
[1747584977538,0.10688183,105490.0,105480.0,0.57182294]
[1747584977753,0.0973094,105490.0,105480.0,0.57182294]
[1747584978192,0.0314,105520.0,105490.0,0.0639]
[1747584978428,0.09927675,105510.0,105500.0,0.56543294]
[1747584978646,0.0973094,105510.0,105500.0,0.56543294]
[1747584978866,0.0973094,105510.0,105500.0,0.62197623]
[1747584980613,0.1003094,105510.0,105500.0,0.0639]
[1747584980843,0.1003094,105510.0,105500.0,0.23948]
[1747584981058,0.1003094,105510.0,105500.0,0.32681294]
[1747584981929,0.0983094,105510.0,105500.0,0.32681294]
[1747584982169,0.0993094,105510.0,105500.0,0.32681294]
[1747584982385,0.0993094,105510.0,105500.0,0.41420223]
[1747584983522,0.0993094,105510.0,105500.0,0.11978929]
[1747584983998,0.0993094,105510.0,105500.0,0.32682929]
[1747584985118,0.0993094,105510.0,105500.0,0.23944]
[1747584985800,0.45902234,105510.0,105480.0,0.44905]
[1747584986033,0.09927675,105500.0,105480.0,0.65609]
[1747584986247,0.16457675,105500.0,105470.0,0.24014]
[1747584986462,0.00196735,105490.0,105470.0,0.24014]
[1747584986677,0.0973094,105480.0,105470.0,0.20704]
[1747584987112,0.09927675,105480.0,105460.0,0.28246435]
[1747584987299,0.09927675,105480.0,105470.0,0.0331]
[1747584987512,0.0973094,105480.0,105470.0,0.06134644]
[1747584987931,0.0973094,105480.0,105470.0,0.06934644]
[1747584988321,0.0973094,105480.0,105470.0,0.06534644]
[1747584988915,0.0973094,105480.0,105470.0,0.06134644]
[1747584989358,0.0973094,105480.0,105470.0,0.06234644]
[1747584991202,0.2869188,105480.0,105470.0,0.06234644]
[1747584992336,0.2869188,105480.0,105470.0,0.001]
[1747584992531,0.65897259,105480.0,105470.0,0.001]
[1747584992959,0.36455965,105480.0,105470.0,0.001]
[1747584993169,0.3183188,105480.0,105470.0,0.001]
[1747584993376,0.2869188,105480.0,105470.0,0.001]
[1747584996411,0.3186188,105480.0,105470.0,0.001]
[1747584996635,0.3512188,105480.0,105470.0,0.001]
[1747584997256,0.3186188,105480.0,105470.0,0.001]
[1747584997646,0.2869188,105480.0,105470.0,0.001]
[1747584999771,0.2869188,105480.0,105470.0,0.35821294]
[1747584999986,0.2869188,105480.0,105470.0,0.39403423]
[1747585000199,0.2869188,105480.0,105470.0,0.0319]
[1747585000414,0.2869188,105480.0,105470.0,0.001]
[1747585001505,0.6901188,105480.0,105470.0,0.001]
[1747585001960,0.6577188,105480.0,105470.0,0.001]
[1747585013056,0.6269188,105480.0,105470.0,0.001]
[1747585013264,0.6269188,105480.0,105470.0,0.0979]
[1747585013477,0.2869188,105480.0,105470.0,0.13713129]
[1747585014196,0.2869188,105480.0,105470.0,0.16713129]
[1747585014931,0.2869188,105480.0,105470.0,0.10633129]
[1747585015151,0.3186188,105480.0,105470.0,0.0671]
[1747585015365,0.3503188,105480.0,105470.0,0.0671]
[1747585017507,0.5541188,105480.0,105470.0,0.0671]
[1747585018376,1.20307259,105480.0,105470.0,0.0671]
[1747585020412,1.21725753,105480.0,105470.0,0.0671]
[1747585021089,1.20307259,105480.0,105470.0,0.0671]
[1747585021316,1.53832406,105480.0,105470.0,0.0671]
[1747585021543,2.19528553,105480.0,105470.0,0.0671]
[1747585021811,2.22189865,105480.0,105470.0,0.0671]
[1747585022275,2.22189865,105480.0,105470.0,0.0661]
[1747585022713,2.22289865,105480.0,105470.0,0.0661]
[1747585022931,2.24373718,105480.0,105470.0,0.0661]
[1747585023153,2.22289865,105480.0,105470.0,0.0661]
[1747585023382,2.19628553,105480.0,105470.0,0.0661]
[1747585023609,1.91187259,105480.0,105470.0,0.0661]
[1747585023831,1.91644482,105480.0,105470.0,0.0661]
[1747585024058,2.13280482,105480.0,105470.0,0.0661]
[1747585024277,2.13380482,105480.0,105470.0,0.0661]
[1747585024487,1.83139188,105480.0,105470.0,0.0661]
[1747585024661,2.12580482,105480.0,105470.0,0.0661]
[1747585026479,1.72241776,105480.0,105470.0,0.0661]
[1747585026680,1.75901659,105480.0,105470.0,0.0661]
[1747585027127,1.46460365,105480.0,105470.0,0.0661]
[1747585027582,1.46444365,105480.0,105470.0,0.0661]
[1747585028443,1.43784482,105480.0,105470.0,0.0661]
[1747585030740,1.02784482,105480.0,105470.0,0.0661]
[1747585030959,1.43816482,105480.0,105470.0,0.0661]
[1747585031175,1.73257776,105480.0,105470.0,0.0661]
[1747585031938,1.75915698,105480.0,105470.0,0.0661]
[1747585032453,1.73257776,105480.0,105470.0,0.0661]
[1747585032915,1.75915352,105480.0,105470.0,0.0661]
[1747585033341,1.73257776,105480.0,105470.0,0.0661]
[1747585034031,1.75915036,105480.0,105470.0,0.0661]
[1747585034481,1.43816482,105480.0,105470.0,0.0661]
[1747585034797,1.43704482,105480.0,105470.0,0.0661]
[1747585035408,1.14263188,105480.0,105470.0,0.0661]
[1747585035604,1.43704482,105480.0,105470.0,0.0661]
[1747585036709,1.73145776,105480.0,105470.0,0.0661]
[1747585036938,1.75803056,105480.0,105470.0,0.0661]
[1747585037169,1.74803056,105480.0,105470.0,0.0661]
[1747585037402,1.74803056,105480.0,105470.0,0.01870101]
[1747585037644,1.42704482,105480.0,105470.0,0.01870101]
[1747585038098,1.23280482,105480.0,105470.0,0.01870101]
[1747585038324,0.73343188,105480.0,105470.0,0.01870101]
[1747585038559,1.43740482,105480.0,105470.0,0.01870101]
[1747585038797,1.40570482,105480.0,105470.0,0.01870101]
[1747585039007,1.40562482,105480.0,105470.0,0.01870101]
[1747585039458,1.43770482,105480.0,105470.0,0.01870101]
[1747585039676,0.01896749,105440.0,105430.0,0.0306]
[1747585039883,0.30595822,105440.0,105430.0,0.06394206]
[1747585040943,0.30595822,105440.0,105430.0,0.06894206]
[1747585041166,0.30595822,105440.0,105430.0,0.07294206]
[1747585045414,0.30595822,105440.0,105430.0,0.03974206]
[1747585045672,0.61491201,105440.0,105430.0,0.00914206]
[1747585045888,0.64671201,105440.0,105430.0,0.00914206]
[1747585046132,0.98671201,105440.0,105430.0,0.00914206]
[1747585046341,1.01687222,105440.0,105430.0,0.00914206]
[1747585046746,1.01687222,105440.0,105430.0,0.00414206]
[1747585046957,1.01687222,105440.0,105430.0,0.00014206]
[1747585047162,0.98647222,105440.0,105430.0,0.00014206]
[1747585047370,0.69205928,105440.0,105430.0,0.00114206]
[1747585047898,0.66025928,105440.0,105430.0,0.00114206]
[1747585048114,0.66025928,105440.0,105430.0,0.03264206]
[1747585048495,0.66025928,105440.0,105430.0,0.03164206]
[1747585048496,0.86453928,105440.0,105430.0,0.03164206]
[1747585048922,0.86553928,105440.0,105430.0,0.03164206]
[1747585049574,0.66125928,105440.0,105430.0,0.03164206]
[1747585049822,0.86625928,105440.0,105430.0,0.03164206]
[1747585051858,0.86625928,105440.0,105430.0,0.00014206]
[1747585052889,1.16067222,105440.0,105430.0,0.00014206]
[1747585053275,0.86625928,105440.0,105430.0,0.00014206]
[1747585053499,0.19922189,105410.0,105400.0,1.54585092]
[1747585053726,0.29653129,105410.0,105400.0,1.34888907]
[1747585054191,0.29653129,105410.0,105400.0,1.64330201]
[1747585054646,0.29653129,105410.0,105400.0,1.35388907]
[1747585055112,0.29653129,105410.0,105400.0,1.36294429]
[1747585055479,0.29653129,105410.0,105400.0,1.36694429]
[1747585056365,0.29653129,105410.0,105400.0,1.66135723]
[1747585056563,0.29653129,105410.0,105400.0,1.42904429]
[1747585059758,0.29653129,105410.0,105400.0,1.72345723]
[1747585060144,0.30617338,105410.0,105400.0,1.72345723]
[1747585060656,0.29653129,105410.0,105400.0,1.72345723]
[1747585060962,0.30601778,105410.0,105400.0,1.72345723]
[1747585062686,0.30601778,105410.0,105400.0,1.42904429]
[1747585063565,0.30601778,105410.0,105400.0,1.72345723]
[1747585063765,0.3153017,105410.0,105400.0,1.72345723]
[1747585063900,0.30601778,105410.0,105400.0,1.72345723]
[1747585064127,0.29653129,105410.0,105400.0,1.72345723]
[1747585064977,0.28704471,105410.0,105400.0,1.72345723]
[1747585067064,0.28704471,105410.0,105400.0,1.42904429]
[1747585067635,0.29658327,105410.0,105400.0,1.42904429]
[1747585070210,0.29658327,105410.0,105400.0,1.39844429]
[1747585076202,0.29658327,105410.0,105400.0,1.43124429]
[1747585076431,0.29658327,105410.0,105400.0,1.72565723]
[1747585078346,0.29658327,105410.0,105400.0,1.43124429]
[1747585079639,0.29658327,105410.0,105400.0,1.39844429]
[1747585080935,0.29658327,105410.0,105400.0,1.43124429]
[1747585081167,0.29658327,105410.0,105400.0,1.39844429]
[1747585085744,0.0973094,105410.0,105400.0,1.93438542]
[1747585085965,0.32499013,105410.0,105400.0,1.93438551]
[1747585086203,0.22765968,105420.0,105400.0,1.88905921]
[1747585086426,0.22765968,105420.0,105410.0,0.57730506]
[1747585086427,0.30599745,105420.0,105410.0,0.57730506]
[1747585086643,0.30599745,105420.0,105410.0,0.67271739]
[1747585086644,0.19920255,105420.0,105410.0,0.67271739]
[1747585086870,0.21817346,105420.0,105410.0,0.67271739]
[1747585087079,0.21817346,105420.0,105410.0,0.64425765]
[1747585087080,0.20868787,105420.0,105410.0,0.64425765]
[1747585087290,0.18969932,105430.0,105420.0,0.26200309]
[1747585087552,0.22763727,105430.0,105420.0,0.56590171]
[1747585087760,0.23712223,105430.0,105420.0,0.65372543]
[1747585087963,0.22763727,105430.0,105420.0,0.66278065]
[1747585088238,0.22763727,105430.0,105420.0,0.67226624]
[1747585088447,0.22763727,105430.0,105420.0,0.67326633]
[1747585088680,0.21815312,105430.0,105420.0,0.46457756]
[1747585088870,0.20775914,105430.0,105420.0,0.46457756]
[1747585090685,0.19827454,105430.0,105420.0,0.46457756]
[1747585092064,0.29558394,105430.0,105420.0,0.10736462]
[1747585092271,0.32868394,105430.0,105420.0,0.10736462]
[1747585092659,0.35888394,105430.0,105420.0,0.01005522]
[1747585093223,0.32868394,105430.0,105420.0,0.01005522]
[1747585094399,0.32868394,105430.0,105420.0,0.001]
[1747585094610,0.36048394,105430.0,105420.0,0.001]
[1747585097569,0.32868394,105430.0,105420.0,0.001]
[1747585099142,0.36088394,105430.0,105420.0,0.001]
[1747585100035,0.29558394,105430.0,105420.0,0.29541294]
[1747585100246,0.29558394,105430.0,105420.0,0.33794517]
[1747585100458,0.30506845,105430.0,105420.0,0.89523811]
[1747585100672,0.31455341,105430.0,105420.0,0.89523811]
[1747585100889,0.198274,105430.0,105420.0,1.08495543]
[1747585101101,0.2172432,105430.0,105420.0,1.09444111]
[1747585101292,0.2172432,105430.0,105420.0,1.10348052]
[1747585101512,0.22672807,105430.0,105420.0,1.1034807]
[1747585101695,0.22672807,105430.0,105420.0,0.90427752]
[1747585101904,0.2172432,105430.0,105420.0,1.09399484]
[1747585102110,0.22672816,105430.0,105420.0,0.60986458]
[1747585102318,0.21724392,105430.0,105420.0,0.60986458]
[1747585102969,0.21724392,105430.0,105420.0,0.57776458]
[1747585102970,0.29558412,105430.0,105420.0,0.57776458]
[1747585103188,0.32568412,105430.0,105420.0,0.25225164]
[1747585103402,0.35788412,105430.0,105420.0,0.25225164]
[1747585103614,0.35788412,105430.0,105420.0,0.05257164]
[1747585103829,0.35788412,105430.0,105420.0,0.01003941]
[1747585104892,0.35788412,105430.0,105420.0,0.001]
[1747585108208,0.32568412,105430.0,105420.0,0.001]
[1747585110710,0.32568412,105430.0,105420.0,0.32741294]
[1747585110711,0.29558412,105430.0,105420.0,0.32741294]
[1747585110925,0.28609916,105430.0,105420.0,0.32741294]
[1747585111143,0.28609916,105430.0,105420.0,0.38980734]
[1747585111985,0.28609916,105430.0,105420.0,0.39885219]
[1747585112833,0.28609916,105430.0,105420.0,0.63053219]
[1747585113050,0.30506899,105430.0,105420.0,0.63053219]
[1747585113260,0.20775959,105430.0,105420.0,0.63053219]
[1747585114328,0.20775959,105430.0,105420.0,0.59853219]
[1747585115043,0.20775959,105430.0,105420.0,0.39885219]
[1747585115262,0.93527287,105430.0,105420.0,0.01004485]
[1747585115480,1.28981372,105430.0,105420.0,0.01004485]
[1747585115706,0.99540078,105430.0,105420.0,0.01004485]
[1747585115937,0.99540078,105430.0,105420.0,0.001]
[1747585116593,0.90478899,105430.0,105420.0,0.001]
[1747585116815,0.70606899,105430.0,105420.0,0.001]
[1747585117053,0.56478899,105430.0,105420.0,0.001]
[1747585117898,0.36606899,105430.0,105420.0,0.001]
[1747585119483,0.33546899,105430.0,105420.0,0.001]
[1747585121793,0.33546899,105430.0,105420.0,0.29541294]
[1747585122013,0.33546899,105430.0,105420.0,0.03054129]
[1747585122441,0.30506899,105430.0,105420.0,0.32495423]
[1747585123714,0.30506899,105430.0,105420.0,0.35725423]
[1747585124138,0.30506899,105430.0,105420.0,0.32495423]
[1747585124587,0.30506899,105430.0,105420.0,0.03054129]
[1747585125458,0.33726899,105430.0,105420.0,0.03054129]
[1747585125901,0.37036899,105430.0,105420.0,0.03959222]
[1747585126135,0.37036899,105430.0,105420.0,0.01005093]
[1747585127417,0.37036899,105430.0,105420.0,0.001]
[1747585131376,0.33726899,105430.0,105420.0,0.001]
[1747585134910,0.33726899,105430.0,105420.0,0.01006111]
[1747585136368,0.33730899,105430.0,105420.0,0.01006111]
[1747585136619,0.33730899,105430.0,105420.0,0.04050852]
[1747585138725,0.30510899,105430.0,105420.0,0.07230852]
[1747585138960,0.30510899,105430.0,105420.0,0.36672146]
[1747585140703,0.30510899,105430.0,105420.0,0.56540146]
[1747585140972,0.30510899,105430.0,105420.0,0.59870146]
[1747585141197,0.30510899,105430.0,105420.0,0.56540146]
[1747585141672,0.30510899,105430.0,105420.0,0.53360146]
[1747585141890,0.33780899,105430.0,105420.0,0.04050852]
[1747585142112,0.37080899,105430.0,105420.0,0.01006111]
[1747585147451,0.87824278,105430.0,105420.0,0.01006111]
[1747585147684,0.95431372,105430.0,105420.0,0.01006111]
[1747585147938,0.95431372,105430.0,105420.0,0.001]
[1747585148589,0.65990078,105430.0,105420.0,0.001]
[1747585149506,0.95431372,105430.0,105420.0,0.001]
[1747585150176,0.87824278,105430.0,105420.0,0.001]
[1747585150632,0.58382984,105430.0,105420.0,0.001]
[1747585150840,0.87824278,105430.0,105420.0,0.001]
[1747585151274,0.58378984,105430.0,105420.0,0.001]
[1747585153201,0.33780899,105430.0,105420.0,0.001]
[1747585154981,0.36890899,105430.0,105420.0,0.001]
[1747585158571,0.67786278,105430.0,105420.0,0.001]
[1747585159207,0.38344984,105430.0,105420.0,0.001]
[1747585159875,0.67786278,105430.0,105420.0,0.001]
[1747585162946,0.87630278,105430.0,105420.0,0.001]
[1747585166050,1.21630278,105430.0,105420.0,0.001]
[1747585166909,1.22630278,105430.0,105420.0,0.001]
[1747585167549,0.2732082,105410.0,105400.0,1.34888907]
[1747585167750,0.86317054,105410.0,105400.0,1.34888907]
[1747585168231,0.5687576,105410.0,105400.0,1.34888907]
[1747585169324,0.58303608,105410.0,105400.0,1.34888907]
[1747585169761,0.58503608,105410.0,105400.0,1.25157967]
[1747585169967,0.79305419,105410.0,105400.0,1.25157967]
[1747585170383,0.79305419,105410.0,105400.0,1.25140403]
[1747585170604,0.79505419,105410.0,105400.0,1.25140403]
[1747585171060,0.39833419,105410.0,105400.0,1.25140403]
[1747585171285,0.31929334,105410.0,105400.0,1.34871343]
[1747585171495,0.51749334,105410.0,105400.0,1.38001343]
[1747585172562,0.51749334,105410.0,105400.0,1.34871343]
[1747585174028,0.55069334,105410.0,105400.0,1.34871343]
[1747585176066,0.51745334,105410.0,105400.0,1.38111343]
[1747585176893,0.51745334,105410.0,105400.0,1.34871343]
[1747585178149,0.31929334,105410.0,105400.0,1.34871343]
[1747585178335,0.31929334,105410.0,105400.0,1.38111343]
[1747585178336,0.51741334,105410.0,105400.0,1.38111343]
[1747585178791,0.3100176,105410.0,105400.0,1.38111343]
[1747585178996,0.3100176,105410.0,105400.0,1.41111343]
[1747585179178,0.3100176,105410.0,105400.0,1.38111343]
[1747585179998,0.3100176,105410.0,105400.0,1.18848169]
[1747585180928,0.3100176,105410.0,105400.0,1.21848169]
[1747585181153,0.31131829,105410.0,105400.0,1.21848169]
[1747585181440,0.31131829,105410.0,105400.0,1.18848169]
[1747585184757,0.31131829,105410.0,105400.0,1.21848169]
[1747585185181,0.31131829,105410.0,105400.0,1.51289463]
[1747585185623,0.31131829,105410.0,105400.0,1.21848169]
[1747585187373,0.30731829,105410.0,105400.0,1.21848169]
[1747585187592,0.30731829,105410.0,105400.0,1.51289463]
[1747585187818,0.29783198,105410.0,105400.0,1.52196995]
[1747585188266,0.29783198,105410.0,105400.0,1.19755701]
[1747585188729,0.29883198,105410.0,105400.0,1.19755701]
[1747585190339,0.32893198,105410.0,105400.0,1.06784761]
[1747585190558,0.36153198,105410.0,105400.0,1.06784761]
[1747585195686,0.55941198,105410.0,105400.0,1.06784761]
[1747585198071,0.55941198,105410.0,105400.0,1.05877229]
[1747585208579,0.52661198,105410.0,105400.0,1.05877229]
[1747585208798,0.52661198,105410.0,105400.0,1.15608169]
[1747585209449,0.32893198,105410.0,105400.0,1.15608169]
[1747585209665,0.52657198,105410.0,105400.0,1.15608169]
[1747585210292,0.55957198,105410.0,105400.0,1.15608169]
[1747585210722,0.52657198,105410.0,105400.0,1.15608169]
[1747585212266,0.32893198,105410.0,105400.0,1.15608169]
[1747585212503,0.29883198,105410.0,105400.0,1.18668169]
[1747585213749,0.29883198,105410.0,105400.0,1.19576411]
[1747585214312,0.29883198,105410.0,105400.0,1.52227705]
[1747585223755,0.29883198,105410.0,105400.0,1.42100994]
[1747585224377,0.29883198,105410.0,105400.0,1.42200994]
[1747585224590,0.29783198,105410.0,105400.0,1.61515577]
[1747585225020,0.29783198,105410.0,105400.0,1.61615577]
[1747585225649,0.29783198,105410.0,105400.0,1.42300994]
[1747585226659,0.31680496,105410.0,105400.0,1.61615577]
[1747585226862,0.21949601,105410.0,105400.0,1.61615577]
[1747585227822,0.21949565,105410.0,105400.0,1.61615577]
[1747585230240,0.21949565,105410.0,105400.0,1.46440616]
[1747585233238,0.21000889,105410.0,105400.0,1.46440616]
[1747585233464,0.21949556,105410.0,105400.0,1.46440616]
[1747585242739,0.21949556,105410.0,105400.0,1.47567051]
[1747585249591,0.21000835,105410.0,105400.0,1.47567051]
[1747585249800,0.22898142,105410.0,105400.0,1.47567051]
[1747585249999,0.22898214,105410.0,105400.0,1.47567051]
[1747585251136,0.22898214,105410.0,105400.0,1.44357051]
[1747585253769,0.21949538,105410.0,105400.0,1.44357051]
[1747585253982,0.21949529,105410.0,105400.0,1.67313051]
[1747585254256,0.191036,105410.0,105400.0,2.2218587]
[1747585254390,0.21000817,105410.0,105400.0,2.2218587]
[1747585254665,0.22898097,105410.0,105400.0,2.03210574]
[1747585254923,0.21949448,105410.0,105400.0,2.04159322]
[1747585255144,0.21949448,105410.0,105400.0,2.04526934]
[1747585255356,0.21949448,105410.0,105400.0,2.03578186]
[1747585255798,0.22898097,105410.0,105400.0,2.03578186]
[1747585256234,0.22898097,105410.0,105400.0,2.02629429]
[1747585256446,0.22898097,105410.0,105400.0,2.03578186]
[1747585257761,0.21000817,105410.0,105400.0,2.23502266]
[1747585257987,0.21949448,105410.0,105400.0,2.24451005]
[1747585258428,0.21949448,105410.0,105400.0,2.23502266]
[1747585259505,0.21949448,105410.0,105400.0,1.848731]
[1747585259639,0.21949448,105410.0,105400.0,2.23502266]
[1747585261067,0.21949448,105410.0,105400.0,2.24451005]
[1747585261397,0.21000817,105410.0,105400.0,2.25399735]
[1747585261652,0.21000817,105410.0,105400.0,2.24451005]
[1747585261914,0.20870748,105410.0,105400.0,2.24451005]
[1747585262332,0.19922126,105410.0,105400.0,2.24451005]
[1747585262557,0.19922126,105410.0,105400.0,2.25399726]
[1747585262780,0.20870739,105410.0,105400.0,2.24451005]
[1747585262994,0.20870739,105410.0,105400.0,2.25399735]
[1747585263245,0.21819361,105410.0,105400.0,2.25399735]
[1747585263470,0.19922126,105410.0,105400.0,2.24450969]
[1747585263706,0.19922126,105410.0,105400.0,2.25399681]
[1747585263947,0.20870739,105410.0,105400.0,2.2539969]
[1747585264373,0.19922126,105410.0,105400.0,2.25399645]
[1747585264819,0.19922126,105410.0,105400.0,2.25039754]
[1747585265034,0.19922126,105410.0,105400.0,2.24091006]
[1747585265683,0.20870748,105410.0,105400.0,2.22193573]
[1747585267168,0.20870748,105410.0,105400.0,2.18933573]
[1747585267407,0.20870739,105410.0,105400.0,2.19882294]
[1747585267628,0.20870739,105410.0,105400.0,2.18933573]
[1747585267851,0.20870739,105410.0,105400.0,2.18933609]
[1747585268212,0.20870739,105410.0,105400.0,2.19882339]
[1747585268419,0.20870739,105410.0,105400.0,2.18933609]
[1747585268627,0.2181937,105410.0,105400.0,2.18933609]
[1747585268828,0.2181937,105410.0,105400.0,1.99237618]
[1747585269068,0.2181937,105410.0,105400.0,2.39514357]
[1747585269385,0.22768019,105410.0,105400.0,2.18641538]
[1747585269599,0.22768019,105410.0,105400.0,1.80262295]
[1747585269834,0.22768019,105410.0,105400.0,2.19590295]
[1747585270017,0.2181937,105410.0,105400.0,2.20539043]
[1747585270244,0.2181937,105410.0,105400.0,2.40463114]
[1747585270840,0.2181937,105410.0,105400.0,2.36454375]
[1747585271304,0.2507937,105410.0,105400.0,2.35505627]
[1747585271510,0.26028019,105410.0,105400.0,2.35505627]
[1747585271728,0.26028019,105410.0,105400.0,1.96876461]
[1747585271944,0.26028019,105410.0,105400.0,1.75682189]
[1747585271945,0.28169478,105410.0,105400.0,1.75682189]
[1747585272360,0.28169478,105410.0,105400.0,1.94996772]
[1747585272793,0.28169478,105410.0,105400.0,1.96490819]
[1747585275181,0.28169478,105410.0,105400.0,1.96422819]
[1747585276885,0.28169478,105410.0,105400.0,1.95288663]
[1747585282406,0.27220811,105410.0,105400.0,1.95288663]
[1747585282603,0.28169469,105410.0,105400.0,1.96237429]
[1747585282833,0.28169469,105410.0,105400.0,1.95288663]
[1747585283171,0.28169469,105410.0,105400.0,1.96237429]
[1747585283374,0.28169469,105410.0,105400.0,1.95288663]
[1747585283735,0.28169469,105410.0,105400.0,1.96237429]
[1747585283932,0.28169469,105410.0,105400.0,1.95288663]
[1747585284302,0.29118136,105410.0,105400.0,1.96237429]
[1747585284509,0.28169469,105410.0,105400.0,1.95288663]
[1747585285867,0.38849076,105410.0,105400.0,1.56659497]
[1747585286102,0.36951796,105410.0,105400.0,1.7597408]
[1747585286519,0.36951796,105410.0,105400.0,1.75615051]
[1747585287468,0.36951796,105410.0,105400.0,1.75615051]
[1747585288405,0.36951796,105410.0,105400.0,1.94929634]
[1747585289038,0.36951796,105410.0,105400.0,1.75615051]
[1747585293465,0.36003138,105410.0,105400.0,1.75615051]
[1747585294525,0.35054471,105410.0,105400.0,1.75615051]
[1747585294677,0.35054471,105410.0,105400.0,1.56300468]
[1747585296123,0.35054471,105410.0,105400.0,1.75615051]
[1747585301296,0.35054471,105410.0,105400.0,1.56300468]
[1747585301507,0.35054471,105410.0,105400.0,1.75615051]
[1747585302335,0.35054471,105410.0,105400.0,1.41615051]
[1747585303140,0.35054471,105410.0,105400.0,1.22300468]
[1747585303433,0.35054471,105410.0,105400.0,1.41615051]
[1747585304193,0.35054471,105410.0,105400.0,0.92945528]
[1747585304797,0.35054471,105410.0,105400.0,0.9181051]
[1747585307003,0.35058471,105410.0,105400.0,0.9181051]
[1747585307404,0.35493871,105410.0,105400.0,0.9181051]
[1747585308624,0.35493871,105410.0,105400.0,0.90902268]
[1747585308927,0.35493871,105410.0,105400.0,0.99992495]
[1747585311318,0.56262539,105410.0,105400.0,0.90902268]
[1747585315200,0.36947956,105410.0,105400.0,0.90902268]
[1747585315467,0.56262539,105410.0,105400.0,0.90902268]
[1747585316920,0.75794539,105410.0,105400.0,0.90902268]
[1747585321122,0.56479956,105410.0,105400.0,0.90902268]
[1747585321327,0.56479956,105410.0,105400.0,0.99992495]
[1747585321534,0.75794539,105410.0,105400.0,0.99992495]
[1747585322883,0.75794539,105410.0,105400.0,0.90902268]
[1747585323104,1.09794539,105410.0,105400.0,0.90902268]
[1747585323318,1.48669122,105410.0,105400.0,0.90902268]
[1747585323527,1.29354539,105410.0,105400.0,0.90902268]
[1747585323740,1.29354539,105410.0,105400.0,0.90802268]
[1747585323969,1.48669122,105410.0,105400.0,0.90802268]
[1747585324179,1.29654539,105410.0,105400.0,0.90802268]
[1747585324812,1.29654539,105410.0,105400.0,0.90702268]
[1747585325279,1.50169122,105410.0,105400.0,0.90702268]
[1747585326342,1.50969122,105410.0,105400.0,0.86412103]
[1747585326512,1.50769122,105410.0,105400.0,0.83140103]
[1747585326922,1.50769122,105410.0,105400.0,0.80033103]
[1747585327127,1.50769122,105410.0,105400.0,0.67218033]
[1747585327323,1.50769122,105410.0,105400.0,0.62475498]
[1747585327608,1.12922539,105410.0,105400.0,0.62475498]
[1747585327782,1.32430539,105410.0,105400.0,0.62475498]
[1747585327962,1.31434539,105410.0,105400.0,0.62475498]
[1747585328209,1.51749122,105410.0,105400.0,0.62475498]
[1747585328398,1.12677122,105410.0,105400.0,0.62475498]
[1747585328549,1.32434539,105410.0,105400.0,0.62475498]
[1747585329164,1.51749122,105410.0,105400.0,0.62475498]
[1747585329571,1.13119956,105410.0,105400.0,0.62475498]
[1747585329774,1.51749122,105410.0,105400.0,0.62475498]
[1747585330174,1.51749122,105410.0,105400.0,0.56647963]
[1747585330398,1.51749122,105410.0,105400.0,0.54687963]
[1747585331008,11.50749122,105410.0,105400.0,0.45854288]
[1747585331215,11.50749122,105410.0,105400.0,0.33915613]
[1747585331420,0.29778866,105390.0,105380.0,0.002]
[1747585331621,1.17206972,105390.0,105380.0,0.002]
[1747585331821,0.97892389,105390.0,105380.0,0.002]
[1747585332222,0.98845682,105390.0,105380.0,0.002]
[1747585332583,0.20953535,105350.0,105340.0,6.48608876]
[1747585332798,10.30684475,105350.0,105340.0,6.48608876]
[1747585333026,11.04000475,105350.0,105340.0,6.48608876]
[1747585333273,11.42629641,105350.0,105340.0,6.48608876]
[1747585333485,10.9562986,105350.0,105340.0,6.48600084]
[1747585333717,10.98033143,105350.0,105340.0,6.48591311]
[1747585333922,11.23851463,105350.0,105340.0,6.48591311]
[1747585334133,11.2385564,105350.0,105340.0,6.48591311]
[1747585334556,11.35846325,105350.0,105340.0,4.98611311]
[1747585334763,11.35100864,105350.0,105340.0,2.73641311]
[1747585334965,11.34700699,105350.0,105340.0,2.73641311]
[1747585335171,11.03331186,105350.0,105340.0,2.73641311]
[1747585335375,10.93510992,105350.0,105340.0,2.73641311]
[1747585335618,11.39069843,105350.0,105340.0,2.73641311]
[1747585335875,11.3278244,105350.0,105340.0,2.73641311]
[1747585336090,11.30698587,105350.0,105340.0,2.73641311]
[1747585336300,11.29698587,105350.0,105340.0,2.73641311]
[1747585336515,11.28139343,105350.0,105340.0,2.73641311]
[1747585336744,11.37870283,105350.0,105340.0,2.73641311]
[1747585336970,11.66068924,105350.0,105340.0,2.73641311]
[1747585337179,11.36573118,105350.0,105340.0,2.73641311]
[1747585337835,10.95237118,105350.0,105340.0,2.73641311]
[1747585338079,11.38517118,105350.0,105340.0,2.73641311]
[1747585338290,11.68012924,105350.0,105340.0,2.73641311]
[1747585338519,11.70096777,105350.0,105340.0,2.73641311]
[1747585338740,11.38517118,105350.0,105340.0,2.73641311]
[1747585339508,11.38817118,105350.0,105340.0,2.73641311]
[1747585339734,10.96537118,105350.0,105340.0,2.73641311]
[1747585339967,11.10741312,105350.0,105340.0,2.73641311]
[1747585340190,1.41241818,105350.0,105340.0,2.73641311]
[1747585340416,1.11746012,105350.0,105340.0,2.73641311]
[1747585340643,1.41241818,105350.0,105340.0,2.73641311]
[1747585340855,1.11742012,105350.0,105340.0,2.73641311]
[1747585341070,1.41237818,105350.0,105340.0,2.73641311]
[1747585341698,11.40233118,105350.0,105340.0,2.73641311]
[1747585341910,11.39233118,105350.0,105340.0,2.73641311]
[1747585342977,11.38233118,105350.0,105340.0,2.73641311]
[1747585343210,10.95837118,105350.0,105340.0,2.73641311]
[1747585343424,11.39165118,105350.0,105340.0,2.73641311]
[1747585343643,11.09669312,105350.0,105340.0,2.73641311]
[1747585343854,11.39165118,105350.0,105340.0,2.73641311]
[1747585344278,11.09669312,105350.0,105340.0,2.73641311]
[1747585344490,11.39165118,105350.0,105340.0,2.73641311]
[1747585344704,11.09669312,105350.0,105340.0,2.73641311]
[1747585344921,11.39165118,105350.0,105340.0,2.73641311]
[1747585346053,11.39165118,105350.0,105340.0,2.72851311]
[1747585347596,11.39165118,105350.0,105340.0,2.72181311]
[1747585348631,11.42472807,105350.0,105340.0,2.72181311]
[1747585350740,11.43599804,105350.0,105340.0,2.68098588]
[1747585351228,11.43599804,105350.0,105340.0,2.67339012]